Workbook

Sheet Informe 4
B2: VIETTEL PERU S.A.C.
B4: Informe Regulatorio N°4: RECONCILIACIÒN DEL ESTADO DE RESULTADOS ESTATUTARIO CON EL DE CONTABILIDAD SEPARADA
B5: Al 31 de diciembre de 2018
B8: Expresado en miles de soles | G8: Estado de Resultados Estatutario | H8: Ajustes | I8: Estado de Resultados de Contabilidad Separada
B10: INGRESOS | G10: =+G11+G12 -> 1058097.283 | H10: =+H11+H12 -> -6575.62234 | I10: =+I11+I12 -> 1051521.661
B11: Ingresos por Servicios | G11: 938745.5603 | H11: -6575.62234 | I11: =+G11+H11 -> 932169.938
B12: Ingresos por Terminales | G12: 119351.7229 | I12: =+G12+H12 -> 119351.7229
B13: GASTOS | G13: =SUM(G14:G19) -> -1003652.42 | H13: =SUM(H14:H19) -> -3367.165043 | I13: =SUM(I14:I19) -> -1007019.585
B14: Costo del servicio | G14: -701794.6202 | H14: =5527.268177027-6958.353 -> -1431.084823 | I14: =+G14+H14 -> -703225.705
B15: Gastos (ingresos) operativos: | G15: 0 | I15: =+G15-H15 -> 0
B16: Gastos de Administración | G16: -116662.3469 | H16: -76.731 | I16: =+G16+H16 -> -116739.0779
B17: Gastos de Ventas | G17: -193507.045 | H17: -75.916 | I17: =+G17+H17 -> -193582.961
B18: Otros Ingresos | G18: 8311.5922 | H18: -1783.43322 | I18: =+G18+H18 -> 6528.15898
B19: Otros Egresos | G19: 0 | I19: =+G19-H19 -> 0
B20: UTILIDAD(PÈRDIDA) DE OPERACIÒN(EBITDA) | G20: =+G10+G13 -> 54444.86332 | H20: =+H10+H13 -> -9942.787383 | I20: =+I10+I13 -> 44502.07593
B21: Gastos (ingresos) Financieros:
B22: Gastos Financieros, neto | G22: -64837.52765 | H22: 64837.528 | I22: =+G22+H22 -> 0.0003548565001
B23: Diferencia en cambio, neta | G23: -76614.97901 | I23: =+G23-H23 -> -76614.97901
B24: UTILIDAD(PÈRDIDA)ANTES DE INTERESES E IMPUESTOS (EBIT) | G24: =SUM(G20:G23) -> -87007.64334 | H24: =SUM(H20:H23) -> 54894.74062 | I24: =SUM(I20:I23) -> -32112.90272
B25: Impuesto a las Ganancias | G25: 0 | I25: =+G25-H25 -> 0
B26: UTILIDAD (PÈRDIDA)ANTES DE IMPUESTOS | G26: =+G24 -> -87007.64334 | H26: =+H24 -> 54894.74062 | I26: =+I24 -> -32112.90272
B27: Otros Resultados Integrales | G27: 0 | I27: =+G27-H27 -> 0
B28: UTILIDAD(PÈRDIDA) NETA | G28: =+G26 -> -87007.64334 | H28: =+H26 -> 54894.74062 | I28: =+I26 -> -32112.90272
B31: Las notas que se acompañan de la página 3 a la 20 forman parte de los reportes de contabilidad separada para fines regulatorios.
